fUST/lending_fUST_20250310
["ID","MTS","AMOUNT","RATE_DAILY","PERIOD"]
[355775647,1741552243313,-500.0,0.00048873,10]
[355775648,1741552243322,-1644.75371968,0.0004889,4]
[355775650,1741552243332,-20000.0,0.000489,120]
[355775652,1741552243342,-768.4,0.000489,30]
[355775654,1741552243351,-6980.67789314,0.000489,120]
[355775656,1741552243360,-160.68,0.000489,120]
[355775658,1741552243369,-200.67557676,0.00048973,10]
[355775660,1741552243379,-500.0,0.0004899,10]
[355775663,1741552243388,-1644.75371968,0.0004899,4]
[355775666,1741552243399,-212.31532656,0.00048999,2]
[355775669,1741552243408,-1000.0,0.00048999,120]
[355775671,1741552243417,-8190.46777508,0.00049,47]
[355775673,1741552243427,-3650.62211159,0.00049,47]
[355775675,1741552243436,-80054.76016536,0.00049,120]
[355775677,1741552243445,-165.54051743,0.00049,30]
[355775679,1741552243455,-2000.0,0.00049,120]
[355775681,1741552243464,-20000.0,0.00049,120]
[355775683,1741552243474,-17909.11,0.00049,30]
[355775685,1741552243483,-329.03,0.00049,30]
[355775687,1741552243492,-616.86,0.00049,30]
[355775689,1741552243501,-573.63,0.00049,30]
[355775691,1741552243511,-300.08,0.00049,30]
[355775693,1741552243520,-500.0,0.00049,60]
[355775694,1741552243530,-503.99558825,0.00049,60]
[355775696,1741552243539,-855721.35069239,0.00049,2]
[355775721,1741552244302,-27872.41676475,0.00049,2]
[355775722,1741552244386,-500.0,0.00046575,120]
[355775723,1741552244395,-410.909975,0.00049,2]
[355775724,1741552244412,-500.0,0.00047123,120]
[355775725,1741552244421,-7323.69741755,0.00049,2]
[355775726,1741552244470,-1410.0,0.00049,2]
[355775735,1741552346735,551.82421107,0.0002802,2]
[355775738,1741552513028,-166.66666666,0.0002792,2]
[355775741,1741553229146,-276.60440104,0.0002802,2]
[355775742,1741553229168,-229.02390673,0.0002802,2]
[355775743,1741553229190,-700.56201778,0.0002802,2]
[355775744,1741553233076,-166.80300035,0.0002792,2]
[355775745,1741553249124,-2559.59810442,0.0002792,2]
[355775746,1741553249146,-143.93300503,0.0002802,2]
[355775747,1741553249169,-500.0,0.0002802,2]
[355775748,1741553249191,-2065.86029684,0.000289,5]
[355775749,1741553249222,-455.5759298,0.00033853,2]
[355775750,1741553249243,-275.082955,0.00034007,2]
[355775751,1741553249267,-500.0,0.00034078,2]
[355775752,1741553249288,-422.966321,0.00034155,2]
[355775753,1741553249311,-291.9511837,0.00034329,2]
[355775754,1741553249332,-152.0,0.00034334,2]
[355775755,1741553249354,-250.0,0.00034648,2]
[355775756,1741553249375,-400.0,0.00034895,2]
[355775757,1741553249396,-639.7921555,0.00035054,7]
[355775758,1741553249418,-500.0,0.00035054,2]
[355775759,1741553249440,-500.0,0.00035054,7]
[355775760,1741553249462,-552.31537716,0.00035054,7]
[355775761,1741553249484,-500.0,0.00035054,7]
[355775762,1741553249506,-372.63919833,0.00035054,2]
[355775763,1741553249529,-283.31937459,0.00035054,7]
[355775764,1741553249550,-249.89413025,0.00035054,7]
[355775765,1741553249573,-500.0,0.00035054,2]
[355775766,1741553249595,-500.0,0.00035054,7]
[355775767,1741553249616,-500.0,0.00035054,7]
[355775768,1741553249638,-500.0,0.00035054,7]
[355775769,1741553249660,-500.0,0.00035054,2]
[355775770,1741553249682,-500.0,0.00035054,7]
[355775771,1741553249703,-500.0,0.00035054,7]
[355775772,1741553249724,-500.0,0.00035054,7]
[355775773,1741553249747,-500.0,0.00035054,2]
[355775774,1741553249768,-500.0,0.00035054,2]
[355775775,1741553249791,-500.0,0.00035054,7]
[355775776,1741553249813,-500.0,0.00035054,7]
[355775777,1741553249835,-500.0,0.00035054,2]
[355775778,1741553249856,-500.0,0.00035054,7]
[355775779,1741553249878,-500.0,0.00035054,7]
[355775780,1741553249900,-46.23302989,0.00035054,7]
[355775782,1741553356113,-400.0,0.00035053,2]
[355775783,1741553356137,-333.43104043,0.00035054,7]
[355775784,1741553362180,-120.33592968,0.00035054,7]
[355775785,1741553362203,-500.0,0.00035054,2]
[355775786,1741553362225,-500.0,0.00035054,7]
[355775787,1741553362253,-500.0,0.00035054,2]
[355775788,1741553362276,-500.0,0.00035054,2]
[355775789,1741553362299,-500.0,0.00035054,2]
[355775790,1741553362322,-500.0,0.00035054,2]
[355775791,1741553362345,-500.0,0.00035054,2]
[355775792,1741553362367,-500.0,0.00035054,2]
[355775793,1741553362390,-47.48021616,0.00035054,2]
[355775794,1741553370115,-452.51978384,0.00035054,2]
[355775795,1741553370139,-500.0,0.00035054,2]
[355775796,1741553370162,-500.0,0.00035054,2]
[355775797,1741553370185,-500.0,0.00035054,2]
[355775798,1741553370207,-173.02477129,0.00035054,2]
[355775799,1741553370229,-500.0,0.00035054,2]
[355775800,1741553370252,-500.0,0.00035054,2]
[355775801,1741553370276,-500.0,0.00035054,2]
[355775802,1741553370299,-500.0,0.00035054,2]
[355775803,1741553370322,-500.0,0.00035054,2]
[355775804,1741553370346,-500.0,0.00035054,2]
[355775805,1741553370368,-500.0,0.00035054,2]
[355775806,1741553370390,-500.0,0.00035054,2]
[355775807,1741553370413,-500.0,0.00035054,2]
[355775808,1741553370436,-500.0,0.00035054,2]
[355775809,1741553370458,-500.0,0.00035054,2]
[355775810,1741553370480,-500.0,0.00035054,2]
[355775811,1741553370504,-500.0,0.00035054,2]
[355775812,1741553370524,-31085.8711214,0.00035055,2]
[355775813,1741553370545,-485.62702845,0.0003512,2]
[355775814,1741553370565,-250.0,0.0003522,2]
[355775815,1741553370585,-482.04775,0.0003589,2]
[355775816,1741553370606,-160.67428034,0.000362,98]
[355775817,1741553370627,-500.0,0.000373,5]
[355775818,1741553370647,-500.0,0.000373,5]
[355775819,1741553370667,-615.48093937,0.000373,5]
[355775820,1741553370688,-565.05790842,0.000373,5]
[355775821,1741553370708,-560.0,0.00037583,2]
[355775822,1741553370728,-500.0,0.00038033,5]
[355775823,1741553370865,-500.0,0.00038033,5]
[355775824,1741553370885,-485.62702843,0.0003866,2]
[355775825,1741553370907,-23587.72268128,0.00039472,2]
[355775826,1741553407659,368.33361214,0.00037372,2]
[355775865,1741553432203,-1312.27731872,0.00039472,2]
[355775866,1741553432213,-52.89420539,0.00039472,5]
[355775867,1741553432259,-347.10579461,0.00039472,5]
[355775868,1741553432273,-310.21013172,0.000395,5]
[355775869,1741553432285,-189.78986828,0.000395,5]
[355775870,1741553432294,-297.99655969,0.000395,5]
[355775871,1741553432303,-464.53220183,0.000395,5]
[355775872,1741553432314,-500.0,0.000395,2]
[355775873,1741553432323,-500.0,0.000395,5]
[355775874,1741553432333,-522.14335578,0.000395,5]
[355775875,1741553432342,-500.0,0.000395,2]
[355775876,1741553432353,-500.0,0.000395,5]
[355775877,1741553432363,-500.0,0.000395,5]
[355775878,1741553432373,-1996.99828681,0.000399,8]
[355775879,1741553432383,-482.04775,0.00041211,2]
[355775880,1741553432392,-560.0,0.00042126,5]
[355775881,1741553432402,-368.33361214,0.00042372,2]
[355775882,1741553432411,-163.605258,0.00042434,5]
[355775883,1741553432420,-361.80012203,0.00043513,10]
[355775884,1741553432429,-160.67428034,0.00044219,120]
[355775885,1741553432439,-783.0,0.00044959,5]
[355775886,1741553432448,-162.69435949,0.00044979,2]
[355775887,1741553432457,-1000.0,0.00044979,2]
[355775888,1741553432467,-1000.0,0.00044979,10]
[355775889,1741553432476,-700.92736224,0.00046,120]
[355775890,1741553432485,-160.0,0.00046087,2]
[355775892,1741553432495,-1509.64588772,0.00046111,120]
[355775893,1741553432505,-2509.79,0.00046265,10]
[355775894,1741553432514,-5404.9724612,0.00046265,4]
[355775895,1741553432523,-5287.16922938,0.00046275,2]
[355775896,1741553432539,-216712.83077062,0.00046275,2]
[355775897,1741553432547,-420.07,0.000463,30]
[355775898,1741553432557,-333.42,0.000463,30]
[355775899,1741553432567,-365.59,0.000463,30]
[355775900,1741553432576,-685.4,0.000463,30]
[355775901,1741553432585,-637.37,0.000463,30]
[355775902,1741553432595,-150.0,0.00046374,30]
[355775903,1741553432604,-482.04775,0.00046532,2]
[355775904,1741553432614,-2161.98898448,0.00046565,4]
[355775905,1741553432623,-500.0,0.00046575,15]
[355775906,1741553432632,-500.0,0.00046575,120]
[355775907,1741553432642,-500.0,0.00046575,120]
[355775908,1741553432651,-500.0,0.00046575,120]
[355775909,1741553432661,-500.0,0.00046575,120]
[355775910,1741553432670,-500.0,0.00046575,120]
[355775911,1741553432679,-500.0,0.00046575,120]
[355775912,1741553432688,-500.0,0.00046575,120]
[355775913,1741553432697,-500.0,0.00046575,120]
[355775914,1741553432707,-9999.0,0.00046575,2]
[355775915,1741553432716,-500.0,0.00046575,120]
[355775916,1741553432726,-672.12,0.00046575,120]
[355775917,1741553432735,-526.27249081,0.00046575,120]
[355775918,1741553432744,-1550.4,0.00046575,120]
[355775919,1741553432753,-500.0,0.00046575,120]
[355775920,1741553432762,-500.0,0.00046575,120]
[355775921,1741553432772,-788.61,0.00046575,120]
[355775922,1741553432782,-500.0,0.00046575,120]
[355775923,1741553432791,-500.0,0.00046575,120]
[355775924,1741553432800,-500.0,0.00046575,120]
[355775925,1741553432810,-500.0,0.00046575,120]
[355775926,1741553432819,-500.0,0.00046575,120]
[355775927,1741553432829,-1363.79,0.00046575,120]
[355775928,1741553432839,-513.4,0.00046575,120]
[355775929,1741553432848,-581.54,0.00046575,120]
[355775930,1741553432858,-500.0,0.00046575,120]
[355775931,1741553432867,-500.0,0.00046575,120]
[355775932,1741553432876,-1899.49,0.00046575,120]
[355775933,1741553432886,-940.66,0.00046575,120]
[355775934,1741553432895,-500.0,0.00046575,120]
[355775935,1741553432905,-500.0,0.00046575,120]
[355775936,1741553432915,-999.0,0.00046575,120]
[355775937,1741553432924,-500.0,0.00046575,120]
[355775938,1741553432934,-19121.32,0.00046575,7]
[355775939,1741553432943,-500.0,0.00046575,120]
[355775940,1741553432953,-500.0,0.00046575,120]
[355775941,1741553432963,-4100.94,0.00046575,120]
[355775942,1741553432972,-500.0,0.00046575,120]
[355775943,1741553432981,-500.0,0.00046575,120]
[355775944,1741553432991,-531.36,0.00046575,120]
[355775945,1741553433001,-500.0,0.00046575,120]
[355775946,1741553433011,-500.0,0.00046575,120]
[355775947,1741553433021,-500.0,0.00046575,120]
[355775948,1741553433031,-994.24,0.00046575,60]
[355775949,1741553433041,-500.0,0.00046575,120]
[355775950,1741553433050,-744.9,0.00046575,120]
[355775951,1741553433060,-500.0,0.00046575,120]
[355775952,1741553433070,-622.35873035,0.00046575,120]
[355775953,1741553433079,-2485.79,0.00046575,120]
[355775954,1741553433089,-626.32,0.00046575,120]
[355775955,1741553433099,-500.0,0.00046575,120]
[355775956,1741553433109,-526.49,0.00046575,120]
[355775957,1741553433119,-500.0,0.00046575,120]
[355775958,1741553433128,-552.97,0.00046575,120]
[355775959,1741553433138,-500.0,0.00046575,120]
[355775960,1741553433148,-500.0,0.00046575,120]
[355775961,1741553433157,-1110.43,0.00046575,120]
[355775962,1741553433167,-500.0,0.00046575,120]
[355775963,1741553433178,-500.0,0.00046575,120]
[355775964,1741553433188,-500.0,0.00046575,120]
[355775965,1741553433197,-500.0,0.00046575,120]
[355775966,1741553433207,-500.0,0.00046575,15]
[355775967,1741553433217,-500.0,0.00046575,120]
[355775968,1741553433227,-500.0,0.00046575,120]
[355775969,1741553433236,-500.0,0.00046575,120]
[355775970,1741553433246,-1000.0,0.00046575,2]
[355775971,1741553433256,-500.0,0.00046575,120]
[355775972,1741553433270,-500.0,0.00046575,120]
[355775973,1741553433280,-500.0,0.00046575,120]
[355775974,1741553433289,-500.0,0.00046575,120]
[355775975,1741553433299,-500.0,0.00046575,120]
[355775976,1741553433310,-500.0,0.00046575,120]
[355775977,1741553433320,-500.0,0.00046965,10]
[355775978,1741553433330,-1080.99449224,0.00047113,4]
[355775979,1741553433339,-500.0,0.00047123,15]
[355775980,1741553433349,-500.0,0.00047123,120]
[355775981,1741553433359,-500.0,0.00047123,120]
[355775982,1741553433369,-500.0,0.00047123,120]
[355775983,1741553433379,-500.0,0.00047123,120]
[355775984,1741553433388,-500.0,0.00047123,120]
[355775985,1741553433398,-9999.0,0.00047123,2]
[355775986,1741553433408,-672.12,0.00047123,120]
[355775987,1741553433417,-1550.4,0.00047123,120]
[355775988,1741553433427,-788.61,0.00047123,120]
[355775989,1741553433436,-500.0,0.00047123,120]
[355775990,1741553433446,-500.0,0.00047123,120]
[355775991,1741553433455,-500.0,0.00047123,120]
[355775992,1741553433465,-500.0,0.00047123,120]
[355775993,1741553433474,-1363.79,0.00047123,120]
[355775994,1741553433484,-513.4,0.00047123,120]
[355775995,1741553433494,-581.54,0.00047123,120]
[355775996,1741553433504,-500.0,0.00047123,120]
[355775997,1741553433514,-500.0,0.00047123,120]
[355775998,1741553433524,-1899.49,0.00047123,120]
[355775999,1741553433534,-940.66,0.00047123,120]
[355776000,1741553433544,-500.0,0.00047123,120]
[355776001,1741553433554,-500.0,0.00047123,120]
[355776002,1741553433564,-19121.32,0.00047123,7]
[355776003,1741553433574,-500.0,0.00047123,120]
[355776004,1741553433583,-500.0,0.00047123,120]
[355776005,1741553433593,-4100.94,0.00047123,120]
[355776006,1741553433603,-500.0,0.00047123,120]
[355776007,1741553433613,-204.3324836,0.00047123,120]
[355776008,1741553433623,-531.36,0.00047123,120]
[355776009,1741553433632,-513.61437257,0.00047123,120]
[355776010,1741553433642,-500.0,0.00047123,120]
[355776011,1741553433651,-994.24,0.00047123,60]
[355776012,1741553433661,-500.0,0.00047123,120]
[355776013,1741553433671,-744.9,0.00047123,120]
[355776014,1741553433680,-500.0,0.00047123,120]
[355776015,1741553433690,-2485.79,0.00047123,120]
[355776016,1741553433699,-626.32,0.00047123,120]
[355776017,1741553433709,-500.0,0.00047123,120]
[355776018,1741553433719,-526.49,0.00047123,120]
[355776019,1741553433729,-500.0,0.00047123,120]
[355776020,1741553433739,-552.97,0.00047123,120]
[355776021,1741553433750,-530.44094382,0.00047123,120]
[355776022,1741553433759,-500.0,0.00047123,120]
[355776023,1741553433769,-1110.43,0.00047123,120]
[355776024,1741553433779,-500.0,0.00047123,120]
[355776025,1741553433789,-500.0,0.00047123,120]
[355776026,1741553433800,-500.0,0.00047123,120]
[355776027,1741553433810,-500.0,0.00047123,120]
[355776028,1741553433820,-500.0,0.00047123,15]
[355776029,1741553433830,-500.0,0.00047123,120]
[355776030,1741553433840,-500.0,0.00047123,120]
[355776031,1741553433851,-500.0,0.00047123,120]
[355776032,1741553433861,-1000.0,0.00047123,2]
[355776033,1741553433871,-500.0,0.00047123,120]
[355776034,1741553433880,-500.0,0.00047123,120]
[355776035,1741553433890,-340.40070337,0.00047123,120]
[355776036,1741553433900,-500.0,0.00047123,120]
[355776037,1741553433909,-500.0,0.00047123,120]
[355776038,1741553433920,-500.0,0.00047173,10]
[355776039,1741553433929,-500.0,0.00047173,10]
[355776040,1741553433939,-604.41172363,0.00047173,10]
[355776041,1741553433949,-500.0,0.00047173,10]
[355776042,1741553433958,-500.0,0.00047173,10]
[355776043,1741553433968,-500.0,0.00047173,10]
[355776044,1741553433979,-500.0,0.00047173,10]
[355776045,1741553433989,-500.0,0.00047173,10]
[355776046,1741553433999,-500.0,0.00047173,10]
[355776047,1741553434009,-500.0,0.00047173,10]
[355776048,1741553434018,-219.85998727,0.00047173,10]
[355776049,1741553434028,-163.605258,0.0004753,120]
[355776050,1741553434037,-1269.19,0.000476,2]
[355776051,1741553434047,-2161.98898448,0.00047661,4]
[355776052,1741553434056,-500.0,0.00047671,15]
[355776053,1741553434067,-500.0,0.00047671,120]
[355776054,1741553434077,-500.0,0.00047671,120]
[355776055,1741553434087,-500.0,0.00047671,120]
[355776056,1741553434097,-500.0,0.00047671,120]
[355776057,1741553434106,-500.0,0.00047671,120]
[355776058,1741553434116,-9999.0,0.00047671,2]
[355776059,1741553434125,-672.12,0.00047671,120]
[355776060,1741553434135,-1550.4,0.00047671,120]
[355776061,1741553434145,-788.61,0.00047671,120]
[355776062,1741553434155,-500.0,0.00047671,120]
[355776063,1741553434164,-500.0,0.00047671,120]
[355776064,1741553434174,-500.0,0.00047671,120]
[355776065,1741553434184,-500.0,0.00047671,120]
[355776066,1741553434195,-1363.79,0.00047671,120]
[355776067,1741553434205,-513.4,0.00047671,120]
[355776068,1741553434215,-581.54,0.00047671,120]
[355776069,1741553434225,-500.0,0.00047671,120]
[355776070,1741553434235,-500.0,0.00047671,120]
[355776071,1741553434247,-1899.49,0.00047671,120]
[355776072,1741553434258,-940.66,0.00047671,120]
[355776073,1741553434268,-500.0,0.00047671,120]
[355776074,1741553434282,-500.0,0.00047671,120]
[355776075,1741553434293,-999.0,0.00047671,120]
[355776076,1741553434302,-19121.32,0.00047671,7]
[355776077,1741553434314,-500.0,0.00047671,120]
[355776078,1741553434324,-500.0,0.00047671,120]
[355776079,1741553434334,-500.0,0.00047671,120]
[355776080,1741553434344,-4100.94,0.00047671,120]
[355776081,1741553434356,-531.36,0.00047671,120]
[355776082,1741553434367,-500.0,0.00047671,120]
[355776083,1741553434377,-994.24,0.00047671,60]
[355776084,1741553434388,-500.0,0.00047671,120]
[355776085,1741553434398,-744.9,0.00047671,120]
[355776086,1741553434408,-500.0,0.00047671,120]
[355776087,1741553434419,-2485.79,0.00047671,120]
[355776088,1741553434429,-626.32,0.00047671,120]
[355776089,1741553434438,-629.37593875,0.00047671,120]
[355776090,1741553434448,-526.49,0.00047671,120]
[355776091,1741553434457,-500.0,0.00047671,120]
[355776092,1741553434467,-552.97,0.00047671,120]
[355776093,1741553434477,-500.0,0.00047671,120]
[355776094,1741553434488,-1110.43,0.00047671,120]
[355776095,1741553434499,-500.0,0.00047671,120]
[355776096,1741553434509,-500.0,0.00047671,120]
[355776097,1741553434519,-500.0,0.00047671,120]
[355776098,1741553434528,-500.0,0.00047671,120]
[355776099,1741553434645,-500.0,0.00047671,15]
[355776100,1741553434658,-500.0,0.00047671,120]
[355776101,1741553434668,-500.0,0.00047671,120]
[355776102,1741553434677,-500.0,0.00047671,120]
[355776103,1741553434687,-1000.0,0.00047671,2]
[355776104,1741553434696,-500.0,0.00047671,120]
[355776105,1741553434705,-500.0,0.00047671,120]
[355776106,1741553434714,-500.0,0.00047671,120]
[355776107,1741553434724,-500.0,0.00047671,120]
[355776108,1741553434733,-252.76739853,0.00047673,10]
[355776109,1741553434743,-150.0,0.00047744,30]
[355776110,1741553434752,-1097.0,0.00047983,5]
[355776111,1741553434761,-159.0,0.00048,90]
[355776112,1741553434771,-922.7436043,0.00048019,4]
[355776113,1741553434781,-435.0,0.00048054,2]
[355776114,1741553434790,-435.0,0.00048054,2]
[355776115,1741553434800,-435.0,0.00048054,2]
[355776116,1741553434809,-435.0,0.00048054,2]
[355776117,1741553434818,-435.0,0.00048054,2]
[355776118,1741553434828,-435.0,0.00048054,2]
[355776119,1741553434837,-435.0,0.00048054,2]
[355776120,1741553434847,-435.0,0.00048054,2]
[355776121,1741553434856,-435.0,0.00048054,2]
[355776122,1741553434866,-435.0,0.00048054,2]
[355776123,1741553434875,-435.0,0.00048054,2]
[355776124,1741553434885,-435.0,0.00048054,2]
[355776125,1741553434894,-435.0,0.00048054,2]
[355776126,1741553434904,-435.0,0.00048054,2]
[355776127,1741553434913,-436.0,0.00048057,2]
[355776128,1741553434922,-436.0,0.00048057,2]
[355776129,1741553434932,-436.0,0.00048057,2]
[355776130,1741553434941,-436.0,0.00048057,2]
[355776131,1741553434951,-436.0,0.00048057,2]
[355776132,1741553434960,-436.0,0.00048057,2]
[355776133,1741553434970,-436.0,0.00048057,2]
[355776134,1741553434979,-436.0,0.00048057,2]
[355776135,1741553434990,-436.0,0.00048057,2]
[355776136,1741553435000,-436.0,0.00048057,2]
[355776137,1741553435010,-436.0,0.00048057,2]
[355776138,1741553435020,-436.0,0.00048057,2]
[355776139,1741553435030,-436.0,0.00048057,2]
[355776140,1741553435039,-1080.99449224,0.0004809,4]
[355776141,1741553435048,-19503.04,0.000481,120]
[355776142,1741553435058,-20000.0,0.000482,120]
[355776143,1741553435067,-2161.98898448,0.00048209,4]
[355776144,1741553435076,-500.0,0.00048219,15]
[355776145,1741553435086,-500.0,0.00048219,120]
[355776146,1741553435095,-500.0,0.00048219,120]
[355776147,1741553435104,-500.0,0.00048219,120]
[355776148,1741553435113,-500.0,0.00048219,120]
[355776149,1741553435123,-512.6,0.00048219,120]
[355776150,1741553435132,-9999.0,0.00048219,2]
[355776151,1741553435142,-672.12,0.00048219,120]
[355776152,1741553435151,-1550.4,0.00048219,120]
[355776153,1741553435161,-788.61,0.00048219,120]
[355776154,1741553435170,-500.0,0.00048219,120]
[355776155,1741553435180,-500.0,0.00048219,120]
[355776156,1741553435190,-500.0,0.00048219,120]
[355776157,1741553435199,-1363.79,0.00048219,120]
[355776158,1741553435208,-513.4,0.00048219,120]
[355776159,1741553435217,-581.54,0.00048219,120]
[355776160,1741553435227,-500.0,0.00048219,120]
[355776161,1741553435237,-500.0,0.00048219,120]
[355776162,1741553435247,-1899.49,0.00048219,120]
[355776163,1741553435257,-940.66,0.00048219,120]
[355776164,1741553435267,-500.0,0.00048219,120]
[355776165,1741553435280,-500.0,0.00048219,120]
[355776166,1741553435289,-19121.32,0.00048219,7]
[355776167,1741553435299,-198.61924989,0.00048219,120]
[355776168,1741553435308,-500.0,0.00048219,120]
[355776169,1741553435318,-500.0,0.00048219,120]
[355776170,1741553435328,-4100.94,0.00048219,120]
[355776171,1741553435337,-531.36,0.00048219,120]
[355776172,1741553435347,-500.0,0.00048219,120]
[355776173,1741553435357,-994.24,0.00048219,60]
[355776174,1741553435367,-500.0,0.00048219,120]
[355776175,1741553435377,-744.9,0.00048219,120]
[355776176,1741553435386,-500.0,0.00048219,120]
[355776177,1741553435395,-2485.79,0.00048219,120]
[355776178,1741553435405,-626.32,0.00048219,120]
[355776179,1741553435414,-526.49,0.00048219,120]
[355776180,1741553435424,-500.0,0.00048219,120]
[355776181,1741553435434,-552.97,0.00048219,120]
[355776182,1741553435443,-324.53722789,0.00048219,120]
[355776183,1741553435453,-1110.43,0.00048219,120]
[355776184,1741553435462,-500.0,0.00048219,120]
[355776185,1741553435471,-500.0,0.00048219,120]
[355776186,1741553435480,-500.0,0.00048219,120]
[355776187,1741553435490,-500.0,0.00048219,120]
[355776188,1741553435500,-500.0,0.00048219,15]
[355776189,1741553435509,-500.0,0.00048219,120]
[355776190,1741553435519,-500.0,0.00048219,120]
[355776191,1741553435528,-500.0,0.00048219,120]
[355776192,1741553435537,-1000.0,0.00048219,2]
[355776193,1741553435547,-276.80211043,0.00048219,120]
[355776194,1741553435556,-500.0,0.00048219,120]
[355776195,1741553435565,-500.0,0.00048219,120]
[355776196,1741553435574,-500.0,0.00048219,120]
[355776197,1741553435583,-200.67557676,0.00048273,10]
[355776198,1741553435592,-20000.0,0.000483,120]
[355776199,1741553435601,-1080.99449224,0.0004839,4]
[355776200,1741553435611,-300.0,0.000484,26]
[355776201,1741553435620,-20000.0,0.000484,120]
[355776202,1741553435629,-20000.0,0.000485,120]
[355776203,1741553435638,-1080.99449224,0.00048596,4]
[355776204,1741553435647,-19503.039999,0.000486,120]
[355776205,1741553435657,-2200.0,0.00048606,30]
[355776206,1741553435666,-20000.0,0.000487,120]
[355776207,1741553435675,-151.0,0.000487,21]
[355776208,1741553435684,-1080.99449224,0.00048757,4]
[355776209,1741553435694,-500.0,0.00048767,15]
[355776210,1741553435703,-1000.0,0.00048767,2]
[355776211,1741553435713,-1000.0,0.00048767,2]
[355776212,1741553435722,-1000.0,0.00048767,2]
[355776213,1741553435732,-1014.3195053,0.00048767,2]
[355776214,1741553435741,-500.0,0.00048767,120]
[355776215,1741553435751,-500.0,0.00048767,120]
[355776216,1741553435760,-444.26541117,0.00048767,120]
[355776217,1741553435770,-9999.0,0.00048767,2]
[355776218,1741553435779,-672.12,0.00048767,120]
[355776219,1741553435789,-1550.4,0.00048767,120]
[355776220,1741553435798,-788.61,0.00048767,120]
[355776221,1741553435807,-500.0,0.00048767,120]
[355776222,1741553435816,-199.36702469,0.00048767,120]
[355776223,1741553435826,-500.0,0.00048767,120]
[355776224,1741553435835,-1363.79,0.00048767,120]
[355776225,1741553435844,-513.4,0.00048767,120]
[355776226,1741553435854,-581.54,0.00048767,120]
[355776227,1741553435864,-500.0,0.00048767,120]
[355776228,1741553435873,-500.0,0.00048767,120]
[355776229,1741553435883,-1899.49,0.00048767,120]
[355776230,1741553435892,-940.66,0.00048767,120]
[355776231,1741553435902,-500.0,0.00048767,120]
[355776232,1741553435912,-500.0,0.00048767,120]
[355776233,1741553435921,-999.0,0.00048767,120]
[355776234,1741553435931,-19121.32,0.00048767,7]
[355776235,1741553435940,-500.0,0.00048767,120]
[355776236,1741553435949,-500.0,0.00048767,120]
[355776237,1741553435959,-4100.94,0.00048767,120]
[355776238,1741553435969,-531.36,0.00048767,120]
[355776239,1741553435978,-500.0,0.00048767,120]
[355776240,1741553435987,-994.24,0.00048767,60]
[355776241,1741553435997,-500.0,0.00048767,120]
[355776242,1741553436006,-744.9,0.00048767,120]
[355776243,1741553436015,-500.0,0.00048767,120]
[355776244,1741553436025,-2485.79,0.00048767,120]
[355776245,1741553436034,-626.32,0.00048767,120]
[355776246,1741553436044,-526.49,0.00048767,120]
[355776247,1741553436054,-500.0,0.00048767,120]